fUSD/lending_fUSD_20250607
["ID","MTS","AMOUNT","RATE_DAILY","PERIOD"]
[364854089,1749275478180,-1213.82,0.000279,2]
[364854090,1749275478190,-15937.73840051,0.000279,2]
[364854091,1749275478201,-2635.0218,0.000279,2]
[364854092,1749275478211,-2635.0218,0.000279,2]
[364854093,1749275478221,-200.0,0.000279,10]
[364854094,1749275478231,-1538.5606,0.000279,2]
[364854095,1749275478242,-1538.5606,0.000279,2]
[364854096,1749275478254,-12128.56731457,0.00027901,2]
[364854097,1749275478263,-829.68,0.00027919,5]
[364854098,1749275478274,-829.68,0.00027919,5]
[364854099,1749275478284,-829.68,0.00027919,5]
[364854100,1749275478294,-829.68,0.00027919,5]
[364854101,1749275478304,-829.7506924,0.00027919,5]
[364854102,1749275478314,-3155.81,0.00027919,5]
[364854103,1749275478324,-3155.81,0.00027919,5]
[364854104,1749275478333,-3155.81,0.00027919,5]
[364854105,1749275478343,-3155.81,0.00027919,5]
[364854106,1749275478353,-3155.89068646,0.00027919,5]
[364854107,1749275478364,-151.0,0.0002792,7]
[364854108,1749275478373,-197.65281716,0.0002792,2]
[364854109,1749275478384,-1000.0,0.00027921,5]
[364854110,1749275478395,-557.0,0.00027922,2]
[364854111,1749275478405,-420.0,0.00027922,2]
[364854112,1749275478416,-274.44,0.00027941,2]
[364854113,1749275478425,-1000.0,0.00027948,7]
[364854114,1749275478435,-151.0,0.00027948,7]
[364854115,1749275478444,-182.90456,0.00027948,7]
[364854116,1749275478453,-182.90456,0.00027948,7]
[364854117,1749275478464,-557.0,0.0002795,2]
[364854118,1749275478475,-420.0,0.0002795,2]
[364854119,1749275478485,-823.0,0.00027957,2]
[364854120,1749275478495,-305.55,0.00027961,2]
[364854121,1749275478505,-508.809037,0.00027966,7]
[364854122,1749275478515,-508.809037,0.00027966,7]
[364854123,1749275478526,-500.0,0.00027972,7]
[364854124,1749275478536,-510.29628809,0.00027972,7]
[364854125,1749275478547,-557.0,0.00027977,2]
[364854126,1749275478557,-420.0,0.00027977,2]
[364854127,1749275478567,-101455.825062,0.00027982,2]
[364854128,1749275478577,-461.2166139,0.00027997,2]
[364854129,1749275478587,-13941.0440091,0.00027997,2]
[364854130,1749275478596,-151.0,0.00027999,7]
[364854131,1749275478606,-151.0,0.00027999,7]
[364854132,1749275478615,-151.0,0.00027999,7]
[364854133,1749275478625,-151.0,0.00027999,7]
[364854134,1749275478634,-221.624927,0.00027999,7]
[364854135,1749275478644,-151.0,0.00027999,7]
[364854136,1749275478654,-151.0,0.00027999,7]
[364854137,1749275478663,-151.0,0.00027999,7]
[364854138,1749275478673,-151.0,0.00027999,7]
[364854139,1749275478682,-278.71,0.00028,2]
[364854140,1749275478691,-1188.95986765,0.00028,5]
[364854141,1749275478701,-136262.88092377,0.00028,2]
[364854142,1749275478711,-1800.0,0.00028,29]
[364854143,1749275478720,-500.0,0.00028,4]
[364854144,1749275478730,-151.0,0.00028,7]
[364854145,1749275478740,-151.0,0.00028,7]
[364854146,1749275478749,-151.0,0.00028,7]
[364854147,1749275478759,-151.0,0.00028,7]
[364854148,1749275478768,-151.0,0.00028,7]
[364854149,1749275478778,-151.0,0.00028,7]
[364854150,1749275478787,-151.0,0.00028,7]
[364854151,1749275478797,-151.0,0.00028,7]
[364854152,1749275478806,-151.0,0.00028,7]
[364854153,1749275478815,-151.0,0.00028,7]
[364854154,1749275478825,-153.118461,0.00028,7]
[364854155,1749275478835,-153.155426,0.00028,7]
[364854156,1749275478844,-151.0,0.00028,7]
[364854157,1749275478854,-151.0,0.00028,7]
[364854158,1749275478863,-151.0,0.00028,7]
[364854159,1749275478873,-151.0,0.00028,7]
[364854160,1749275478882,-151.0,0.00028,7]
[364854161,1749275478891,-171.43902,0.00028,7]
[364854162,1749275478901,-171.43902,0.00028,7]
[364854163,1749275478910,-151.0,0.00028,7]
[364854164,1749275478919,-151.0,0.00028,7]
[364854165,1749275478929,-151.0,0.00028,7]
[364854166,1749275478939,-151.0,0.00028,7]
[364854167,1749275478948,-163.776033,0.00028,7]
[364854168,1749275478958,-14121.23,0.00028,2]
[364854169,1749275478967,-163.776033,0.00028,7]
[364854170,1749275478976,-302.977916,0.00028,7]
[364854171,1749275478986,-302.977916,0.00028,7]
[364854172,1749275478995,-152.168168,0.00028,7]
[364854173,1749275479004,-151.0,0.00028,7]
[364854174,1749275479013,-152.168168,0.00028,7]
[364854175,1749275479023,-422.064083,0.00028,7]
[364854176,1749275479033,-422.064083,0.00028,7]
[364854177,1749275479042,-209.089398,0.00028,7]
[364854178,1749275479052,-151.0,0.00028,7]
[364854179,1749275479061,-265.195417,0.00028,7]
[364854180,1749275479071,-265.195417,0.00028,7]
[364854181,1749275479080,-151.0,0.00028,7]
[364854182,1749275479089,-151.0,0.00028,7]
[364854183,1749275479098,-156.782811,0.00028,7]
[364854184,1749275479107,-156.782811,0.00028,7]
[364854185,1749275479116,-1221.810892,0.00028,7]
[364854186,1749275479126,-1221.810892,0.00028,7]
[364854187,1749275479135,-151.0,0.00028,7]
[364854188,1749275479144,-151.0,0.00028,7]
[364854189,1749275479154,-151.0,0.00028,7]
[364854190,1749275479167,-151.0,0.00028,7]
[364854191,1749275479176,-358.024047,0.00028,7]
[364854192,1749275479185,-358.024047,0.00028,7]
[364854193,1749275479195,-204.206251,0.00028,7]
[364854194,1749275479207,-204.206251,0.00028,7]
[364854195,1749275479217,-151.0,0.00028,7]
[364854196,1749275479226,-27195.48247358,0.00028,2]
[364854197,1749275479238,-940.59,0.00028,2]
[364854198,1749275479248,-238.85,0.00028,2]
[364854199,1749275479258,-186.68,0.00028,2]
[364854200,1749275479268,-975.39,0.00028,2]
[364854201,1749275479278,-1213.82,0.00028,2]
[364854202,1749275479288,-108383.50437767,0.00028,2]
[364854203,1749275479298,-151.0,0.00028001,7]
[364854204,1749275479308,-151.0,0.00028001,7]
[364854205,1749275479317,-151.0,0.00028001,7]
[364854206,1749275479327,-151.0,0.00028001,7]
[364854207,1749275479337,-207.089752,0.00028001,7]
[364854208,1749275479347,-508.809037,0.00028001,7]
[364854209,1749275479357,-508.809037,0.00028001,7]
[364854210,1749275479367,-5123.9431672,0.00028001,2]
[364854211,1749275479379,-137556.4745083,0.00028001,2]
[364854212,1749275479389,-286.404332,0.00028001,7]
[364854213,1749275479399,-151.0,0.00028001,7]
[364854214,1749275479409,-237.852088,0.00028001,7]
[364854215,1749275479420,-557.0,0.00028005,2]
[364854216,1749275479430,-420.0,0.00028005,2]
[364854217,1749275479439,-151.0,0.00028016,7]
[364854218,1749275479449,-151.0,0.00028016,7]
[364854219,1749275479459,-180.364341,0.00028016,7]
[364854220,1749275479469,-180.364341,0.00028016,7]
[364854221,1749275479478,-157.072117,0.00028016,7]
[364854222,1749275479488,-157.072117,0.00028016,7]
[364854223,1749275479498,-132860.76055663,0.0002802,2]
[364854224,1749275479507,-27844.90710259,0.0002802,2]
[364854225,1749275479517,-151.0,0.0002802,7]
[364854226,1749275479527,-176.665353,0.0002802,7]
[364854227,1749275479537,-151.0,0.0002802,7]
[364854228,1749275479547,-151.0,0.0002802,7]
[364854229,1749275479558,-157.000071,0.0002802,7]
[364854230,1749275479568,-151.0,0.0002802,7]
[364854231,1749275479578,-151.0,0.0002802,7]
[364854232,1749275479587,-293.517866,0.0002802,7]
[364854233,1749275479598,-293.517866,0.0002802,7]
[364854234,1749275479609,-176.069404,0.0002802,7]
[364854235,1749275479619,-6191.071096,0.0002802,7]
[364854236,1749275479629,-6191.071096,0.0002802,7]
[364854237,1749275479639,-618.743293,0.0002802,7]
[364854238,1749275479649,-618.743293,0.0002802,7]
[364854239,1749275479658,-151.0,0.0002802,7]
[364854240,1749275479668,-151.0,0.0002802,7]
[364854241,1749275479677,-151.0,0.0002802,7]
[364854242,1749275479687,-151.0,0.0002802,7]
[364854243,1749275479697,-151.0,0.0002802,7]
[364854244,1749275479707,-1105.102924,0.0002802,7]
[364854245,1749275479716,-1105.102924,0.0002802,7]
[364854246,1749275479726,-151.0,0.0002802,7]
[364854247,1749275479736,-557.0,0.00028032,2]
[364854248,1749275479746,-420.0,0.00028032,2]
[364854249,1749275479756,-270.465661,0.00028035,7]
[364854250,1749275479765,-151.0,0.00028035,7]
[364854251,1749275479776,-151.0,0.00028035,7]
[364854252,1749275479785,-151.0,0.00028035,7]
[364854253,1749275479796,-151.0,0.00028035,7]
[364854254,1749275479806,-151.0,0.00028035,7]
[364854255,1749275479816,-151.0,0.00028035,7]
[364854256,1749275479826,-151.0,0.00028035,7]
[364854257,1749275479836,-151.0,0.00028035,7]
[364854258,1749275479846,-235.368653,0.00028035,7]
[364854259,1749275479855,-151.0,0.00028035,7]
[364854260,1749275479865,-161.779004,0.00028035,7]
[364854261,1749275479875,-151.0,0.00028035,7]
[364854262,1749275479885,-151.0,0.00028035,7]
[364854263,1749275479895,-151.0,0.00028035,7]
[364854264,1749275479905,-163.776033,0.00028035,7]
[364854265,1749275479915,-163.776033,0.00028035,7]
[364854266,1749275479924,-302.977916,0.00028035,7]
[364854267,1749275479934,-302.977916,0.00028035,7]
[364854268,1749275479944,-227.410979,0.00028035,7]
[364854269,1749275479954,-182.90456,0.00028035,7]
[364854270,1749275479964,-182.90456,0.00028035,7]
[364854271,1749275479973,-151.0,0.00028035,7]
[364854272,1749275479983,-422.064083,0.00028035,7]
[364854273,1749275479993,-422.064083,0.00028035,7]
[364854274,1749275480003,-151.0,0.00028035,7]
[364854275,1749275480012,-151.0,0.00028035,7]
[364854276,1749275480023,-151.0,0.00028035,7]
[364854277,1749275480032,-156.782811,0.00028035,7]
[364854278,1749275480043,-156.782811,0.00028035,7]
[364854279,1749275480052,-1221.810892,0.00028035,7]
[364854280,1749275480062,-1221.810892,0.00028035,7]
[364854281,1749275480072,-151.0,0.00028035,7]
[364854282,1749275480082,-212.591451,0.00028035,7]
[364854283,1749275480092,-162.037718,0.00028035,7]
[364854284,1749275480101,-162.037718,0.00028035,7]
[364854285,1749275480111,-249.534353,0.00028035,7]
[364854286,1749275480121,-249.534353,0.00028035,7]
[364854287,1749275480130,-743.803236,0.00028035,7]
[364854288,1749275480141,-743.803236,0.00028035,7]
[364854289,1749275480152,-151.0,0.00028035,7]
[364854290,1749275480167,-289.758248,0.00028035,7]
[364854291,1749275480179,-289.758248,0.00028035,7]
[364854292,1749275480190,-204.206251,0.00028035,7]
[364854293,1749275480201,-204.206251,0.00028035,7]
[364854294,1749275480211,-151.0,0.00028035,7]
[364854295,1749275480221,-311.73744498,0.00028044,2]
[364854296,1749275480230,-636.82,0.00028054,5]
[364854297,1749275480241,-151.0,0.00028054,7]
[364854298,1749275480252,-188.76991,0.00028054,7]
[364854299,1749275480262,-200.378318,0.00028054,7]
[364854300,1749275480273,-508.809037,0.00028054,7]
[364854301,1749275480283,-508.809037,0.00028054,7]
[364854302,1749275480293,-1712.784714,0.00028054,5]
[364854303,1749275480304,-2014.532933,0.00028054,5]
[364854304,1749275480314,-480.0,0.00028054,5]
[364854305,1749275480324,-151.0,0.00028054,7]
[364854306,1749275480335,-480.0,0.00028054,5]
[364854307,1749275480346,-176.36378479,0.00028054,5]
[364854308,1749275480358,-151.0,0.00028054,7]
[364854309,1749275480369,-480.0,0.00028054,5]
[364854310,1749275480380,-480.0,0.00028054,5]
[364854311,1749275480390,-480.0,0.00028054,5]
[364854312,1749275480400,-480.0,0.00028054,5]
[364854313,1749275480410,-480.0,0.00028054,5]
[364854314,1749275480420,-480.0,0.00028054,5]
[364854315,1749275480430,-480.0,0.00028054,5]
[364854316,1749275480440,-270.478349,0.00028054,7]
[364854317,1749275480451,-189.57425482,0.00028054,5]
[364854318,1749275480462,-151.0,0.00028054,7]
[364854319,1749275480472,-180.364341,0.00028054,7]
[364854320,1749275480483,-480.0,0.00028054,5]
[364854321,1749275480493,-480.0,0.00028054,5]
[364854322,1749275480503,-180.364341,0.00028054,7]
[364854323,1749275480515,-965.47,0.00028054,5]
[364854324,1749275480525,-171.43902,0.00028054,7]
[364854325,1749275480535,-499.13438102,0.00028054,5]
[364854326,1749275480546,-171.43902,0.00028054,7]
[364854327,1749275480556,-486.60473685,0.00028054,5]
[364854328,1749275480566,-480.0,0.00028054,5]
[364854329,1749275480576,-480.0,0.00028054,5]
[364854330,1749275480586,-480.0,0.00028054,5]
[364854331,1749275480596,-480.0,0.00028054,5]
[364854332,1749275480607,-480.0,0.00028054,5]
[364854333,1749275480617,-165.91465972,0.00028054,5]
[364854334,1749275480627,-151.0,0.00028054,7]
[364854335,1749275480638,-293.043261,0.00028054,7]
[364854336,1749275480648,-480.0,0.00028054,5]
[364854337,1749275480658,-499.59754494,0.00028054,5]
[364854338,1749275480668,-480.0,0.00028054,5]
[364854339,1749275480680,-480.0,0.00028054,5]
[364854340,1749275480696,-779.14,0.00028054,5]
[364854341,1749275480707,-480.0,0.00028054,5]
[364854342,1749275480716,-480.0,0.00028054,5]
[364854343,1749275480726,-480.0,0.00028054,5]
[364854344,1749275480736,-480.0,0.00028054,5]
[364854345,1749275480745,-480.0,0.00028054,5]
[364854346,1749275480755,-480.0,0.00028054,5]
[364854347,1749275480765,-157.072117,0.00028054,7]
[364854348,1749275480776,-480.0,0.00028054,5]
[364854349,1749275480787,-157.072117,0.00028054,7]
[364854350,1749275480799,-480.0,0.00028054,5]
[364854351,1749275480811,-480.0,0.00028054,5]
[364854352,1749275480822,-496.75905525,0.00028054,5]
[364854353,1749275480832,-151.0,0.00028054,7]
[364854354,1749275480843,-340.74221367,0.00028054,5]
[364854355,1749275480853,-553.1,0.00028054,5]
[364854356,1749275480863,-480.0,0.00028054,5]
[364854357,1749275480873,-480.0,0.00028054,2]
[364854358,1749275480884,-480.0,0.00028054,5]
[364854359,1749275480894,-480.0,0.00028054,5]
[364854360,1749275480904,-480.0,0.00028054,5]
[364854361,1749275480915,-1873.25,0.00028054,5]
[364854362,1749275480926,-480.0,0.00028054,5]
[364854363,1749275480937,-748.25,0.00028054,5]
[364854364,1749275480948,-480.0,0.00028054,5]
[364854365,1749275480958,-891.05,0.00028054,5]
[364854366,1749275480969,-807.46,0.00028054,5]
[364854367,1749275480980,-480.0,0.00028054,5]
[364854368,1749275480991,-480.0,0.00028054,5]
[364854369,1749275481001,-480.0,0.00028054,5]
[364854370,1749275481011,-480.0,0.00028054,5]
[364854371,1749275481023,-152.168168,0.00028054,7]
[364854372,1749275481035,-480.0,0.00028054,5]
[364854373,1749275481046,-182.90456,0.00028054,7]
[364854374,1749275481056,-592.7,0.00028054,5]
[364854375,1749275481066,-511.82,0.00028054,5]
[364854376,1749275481076,-182.90456,0.00028054,7]
[364854377,1749275481086,-488.56,0.00028054,5]
[364854378,1749275481097,-152.168168,0.00028054,7]
[364854379,1749275481107,-517.29791891,0.00028054,5]
[364854380,1749275481116,-1115.25,0.00028054,5]
[364854381,1749275481126,-1363.86,0.00028054,5]
[364854382,1749275481136,-480.0,0.00028054,5]
[364854383,1749275481145,-504.56,0.00028054,5]
[364854384,1749275481158,-480.0,0.00028054,5]
[364854385,1749275481168,-504.94042073,0.00028054,5]
[364854386,1749275481179,-774.18,0.00028054,5]
[364854387,1749275481191,-485.37424008,0.00028054,5]
[364854388,1749275481203,-474.60715903,0.00028054,5]
[364854389,1749275481213,-480.0,0.00028054,5]
[364854390,1749275481223,-480.0,0.00028054,5]
[364854391,1749275481234,-512.6480785,0.00028054,5]
[364854392,1749275481244,-598.1,0.00028054,5]
[364854393,1749275481254,-480.0,0.00028054,5]
[364854394,1749275481264,-692.39,0.00028054,5]
[364854395,1749275481274,-480.0,0.00028054,5]
[364854396,1749275481283,-265.195417,0.00028054,7]
[364854397,1749275481294,-585.52,0.00028054,5]
[364854398,1749275481304,-504.54599508,0.00028054,5]
[364854399,1749275481314,-1003.36,0.00028054,5]
[364854400,1749275481326,-265.195417,0.00028054,7]
[364854401,1749275481336,-480.0,0.00028054,5]
[364854402,1749275481346,-480.0,0.00028054,5]
[364854403,1749275481357,-489.14961388,0.00028054,5]
[364854404,1749275481367,-480.0,0.00028054,5]
[364854405,1749275481377,-480.0,0.00028054,5]
[364854406,1749275481387,-528.11,0.00028054,5]
[364854407,1749275481397,-480.0,0.00028054,5]
[364854408,1749275481407,-1090.43,0.00028054,5]
[364854409,1749275481416,-480.0,0.00028054,5]
[364854410,1749275481427,-480.0,0.00028054,5]
[364854411,1749275481437,-335.172164,0.00028054,5]
[364854412,1749275481447,-480.0,0.00028054,5]
[364854413,1749275481457,-480.0,0.00028054,5]
[364854414,1749275481467,-845.75,0.00028054,5]
[364854415,1749275481477,-480.0,0.00028054,5]
[364854416,1749275481488,-480.0,0.00028054,5]
[364854417,1749275481498,-1268.78,0.00028054,5]
[364854418,1749275481508,-489.80507694,0.00028054,5]
[364854419,1749275481518,-705.95,0.00028054,5]
[364854420,1749275481528,-324.72325086,0.00028054,5]
[364854421,1749275481538,-480.0,0.00028054,5]
[364854422,1749275481548,-480.0,0.00028054,5]
[364854423,1749275481558,-667.85,0.00028054,5]
[364854424,1749275481568,-480.0,0.00028054,5]
[364854425,1749275481578,-525.14,0.00028054,5]
[364854426,1749275481587,-630.65,0.00028054,5]
[364854427,1749275481597,-494.77544235,0.00028054,5]
[364854428,1749275481607,-556.44,0.00028054,5]
[364854429,1749275481617,-480.0,0.00028054,5]
[364854430,1749275481627,-865.84,0.00028054,5]
[364854431,1749275481637,-480.0,0.00028054,5]
[364854432,1749275481647,-987.96,0.00028054,5]
[364854433,1749275481657,-683.29,0.00028054,5]
[364854434,1749275481667,-480.0,0.00028054,5]
[364854435,1749275481677,-983.97,0.00028054,5]
[364854436,1749275481686,-480.0,0.00028054,5]
[364854437,1749275481696,-480.0,0.00028054,5]
[364854438,1749275481705,-480.0,0.00028054,5]
[364854439,1749275481715,-811.35,0.00028054,5]
[364854440,1749275481725,-480.0,0.00028054,5]
[364854441,1749275481734,-480.0,0.00028054,5]
[364854442,1749275481744,-480.0,0.00028054,5]
[364854443,1749275481754,-480.0,0.00028054,5]
[364854444,1749275481764,-994.12,0.00028054,5]
[364854445,1749275481958,-549.5,0.00028054,5]
[364854446,1749275481983,-151.0,0.00028054,7]
[364854447,1749275481993,-586.32,0.00028054,5]
[364854448,1749275482002,-509.69302435,0.00028054,5]
[364854449,1749275482012,-258.1738388,0.00028054,5]
[364854450,1749275482021,-1161.87,0.00028054,5]
[364854451,1749275482030,-480.0,0.00028054,5]
[364854452,1749275482039,-480.0,0.00028054,5]
[364854453,1749275482049,-480.0,0.00028054,5]
[364854454,1749275482058,-480.0,0.00028054,5]
[364854455,1749275482068,-480.0,0.00028054,5]
[364854456,1749275482077,-480.0,0.00028054,5]
[364854457,1749275482086,-531.17,0.00028054,5]
[364854458,1749275482096,-480.0,0.00028054,5]
[364854459,1749275482105,-1154.57,0.00028054,5]
[364854460,1749275482114,-285.09912259,0.00028054,5]
[364854461,1749275482123,-624.96,0.00028054,5]
[364854462,1749275482132,-706.88,0.00028054,5]
[364854463,1749275482141,-518.86895502,0.00028054,5]
[364854464,1749275482150,-480.0,0.00028054,5]
[364854465,1749275482164,-155.907656,0.00028054,7]
[364854466,1749275482174,-505.71919651,0.00028054,5]
[364854467,1749275482183,-480.0,0.00028054,5]
[364854468,1749275482192,-800.86,0.00028054,5]
[364854469,1749275482202,-480.0,0.00028054,5]
[364854470,1749275482212,-607.83,0.00028054,5]
[364854471,1749275482221,-754.4,0.00028054,5]
[364854472,1749275482231,-480.0,0.00028054,5]
[364854473,1749275482242,-1444.88,0.00028054,5]
[364854474,1749275482252,-480.0,0.00028054,5]
[364854475,1749275482261,-1068.78,0.00028054,5]
[364854476,1749275482270,-162.037718,0.00028054,7]
[364854477,1749275482280,-480.0,0.00028054,5]
[364854478,1749275482289,-722.25,0.00028054,5]
[364854479,1749275482298,-480.0,0.00028054,5]
[364854480,1749275482308,-162.037718,0.00028054,7]
[364854481,1749275482318,-658.72,0.00028054,5]
[364854482,1749275482327,-1932.61,0.00028054,5]
[364854483,1749275482337,-249.534353,0.00028054,7]
[364854484,1749275482346,-480.0,0.00028054,5]
[364854485,1749275482356,-249.534353,0.00028054,7]
[364854486,1749275482366,-480.0,0.00028054,5]
[364854487,1749275482376,-814.9,0.00028054,5]
[364854488,1749275482386,-943.75,0.00028054,5]
[364854489,1749275482395,-480.0,0.00028054,5]
[364854490,1749275482405,-480.0,0.00028054,5]
[364854491,1749275482415,-743.803236,0.00028054,7]
[364854492,1749275482424,-480.0,0.00028054,5]
[364854493,1749275482435,-743.803236,0.00028054,7]
[364854494,1749275482445,-539.43471147,0.00028054,5]
[364854495,1749275482455,-480.0,0.00028054,5]
[364854496,1749275482465,-576.73,0.00028054,5]
[364854497,1749275482475,-748.49,0.00028054,5]
[364854498,1749275482484,-151.0,0.00028054,7]
[364854499,1749275482493,-1442.29,0.00028054,5]
[364854500,1749275482504,-151.0,0.00028054,7]
[364854501,1749275482514,-480.0,0.00028054,5]
[364854502,1749275482524,-176.293948,0.00028054,7]
[364854503,1749275482534,-480.0,0.00028054,5]
[364854504,1749275482543,-853.62,0.00028054,5]
[364854505,1749275482553,-480.0,0.00028054,5]
[364854506,1749275482563,-173.38019525,0.00028054,5]
[364854507,1749275482572,-480.0,0.00028054,5]
[364854508,1749275482582,-151.0,0.00028054,7]
[364854509,1749275482592,-480.0,0.00028054,5]
[364854510,1749275482602,-949.58,0.00028054,5]
[364854511,1749275482612,-504.15702106,0.00028054,5]
[364854512,1749275482622,-842.89,0.00028054,5]
[364854513,1749275482631,-480.0,0.00028054,5]
[364854514,1749275482642,-1000.0,0.00028054,5]
[364854515,1749275482651,-891.66,0.00028054,5]
[364854516,1749275482660,-480.0,0.00028054,5]
[364854517,1749275482670,-480.0,0.00028054,5]
[364854518,1749275482679,-293.517866,0.00028054,7]
[364854519,1749275482689,-916.35,0.00028054,5]
[364854520,1749275482698,-293.517866,0.00028054,7]
[364854521,1749275482707,-289.758248,0.00028054,7]
[364854522,1749275482717,-151.0,0.00028054,7]
[364854523,1749275482726,-289.758248,0.00028054,7]
[364854524,1749275482735,-6191.071096,0.00028054,7]
[364854525,1749275482744,-405.381189,0.00028054,5]
[364854526,1749275482754,-480.0,0.00028054,5]
[364854527,1749275482763,-480.0,0.00028054,5]
[364854528,1749275482774,-923.96,0.00028054,5]
[364854529,1749275482783,-6191.071096,0.00028054,7]
[364854530,1749275482793,-1066.78,0.00028054,5]
[364854531,1749275482802,-765.06,0.00028054,5]
[364854532,1749275482811,-480.0,0.00028054,5]
[364854533,1749275482821,-589.04,0.00028054,5]
[364854534,1749275482830,-943.26,0.00028054,5]
[364854535,1749275482839,-480.0,0.00028054,5]
[364854536,1749275482848,-618.743293,0.00028054,7]
[364854537,1749275482858,-871.81,0.00028054,5]
[364854538,1749275482867,-480.0,0.00028054,5]
[364854539,1749275482877,-618.743293,0.00028054,7]
[364854540,1749275482887,-151.0,0.00028054,7]
[364854541,1749275482897,-480.0,0.00028054,5]
[364854542,1749275482908,-480.0,0.00028054,5]
[364854543,1749275482920,-1182.54,0.00028054,5]
[364854544,1749275482930,-480.0,0.00028054,5]
[364854545,1749275482940,-1648.23,0.00028054,5]
[364854546,1749275482950,-1744.26,0.00028054,5]
[364854547,1749275482962,-484.92823403,0.00028054,5]
[364854548,1749275482971,-2996.31,0.00028054,5]
[364854549,1749275482980,-594.24,0.00028054,5]
[364854550,1749275482990,-1656.96,0.00028054,5]
[364854551,1749275483000,-511.17150852,0.00028054,5]
[364854552,1749275483009,-480.0,0.00028054,5]
[364854553,1749275483019,-581.99,0.00028054,5]
[364854554,1749275483029,-480.0,0.00028054,5]
[364854555,1749275483038,-513.10204423,0.00028054,5]
[364854556,1749275483047,-151.0,0.00028054,7]
[364854557,1749275483056,-4307.55,0.00028054,5]
[364854558,1749275483065,-170.041167,0.00028054,7]
[364854559,1749275483074,-629.18,0.00028054,5]
[364854560,1749275483084,-358.024047,0.00028054,7]
[364854561,1749275483092,-486.54265809,0.00028054,5]
[364854562,1749275483102,-593.81,0.00028054,5]
[364854563,1749275483111,-594.43,0.00028054,5]
[364854564,1749275483120,-798.07,0.00028054,5]
[364854565,1749275483129,-358.024047,0.00028054,7]
[364854566,1749275483138,-480.0,0.00028054,5]
[364854567,1749275483147,-151.0,0.00028054,7]
[364854568,1749275483159,-831.81,0.00028054,5]
[364854569,1749275483168,-5383.27,0.00028054,5]
[364854570,1749275483177,-480.0,0.00028054,5]
[364854571,1749275483187,-2090.28,0.00028054,5]
[364854572,1749275483196,-1267.21,0.00028054,5]
[364854573,1749275483206,-10955.06,0.00028054,5]
[364854574,1749275483215,-480.0,0.00028054,5]
[364854575,1749275483224,-959.52,0.00028054,5]
[364854576,1749275483234,-5511.22,0.00028054,5]
[364854577,1749275483245,-7087.11,0.00028054,5]
[364854578,1749275483255,-480.0,0.00028054,5]
[364854579,1749275483265,-2433.15,0.00028054,5]
[364854580,1749275483283,-151.0,0.00028054,7]
[364854581,1749275483295,-480.0,0.00028054,5]
[364854582,1749275483304,-150.35042316,0.00028054,5]
[364854583,1749275483314,-480.0,0.00028054,5]
[364854584,1749275483323,-480.0,0.00028054,5]
[364854585,1749275483333,-1105.102924,0.00028054,7]
[364854586,1749275483344,-800.24,0.00028054,5]
[364854587,1749275483356,-1027.33,0.00028054,5]
[364854588,1749275483365,-1086.55,0.00028054,5]